[Event "Titled Tuesday Blitz July 6 2021"]
[White "Zemach, Roee"]
[Black "Vaidya, Atulya"]
[WhiteFideId "2818531"]
[BlackFideId "2047713"]
[WhiteElo "2131"]
[BlackElo "2383"]
[Result "1-0"]
[Round "07"]
[TimeControl "180+1"]
[Date "2021.07.06"]
[WhiteClock "0:00:09"]
[BlackClock "0:00:07"]

1. d4 {[%clk 0:03:00]}  Nf6 {[%clk 0:02:44]} 2. c4 {[%clk 0:02:59]}  e6 {[%clk 0:02:41]} 3. g3 {[%clk 0:02:57]}  d5 {[%clk 0:02:33]} 4. Nf3 {[%clk 0:02:55]}  c5 {[%clk 0:02:30]} 5. Bg2 {[%clk 0:02:50]}  Be7 {[%clk 0:02:27]} 6. O-O {[%clk 0:02:47]}  O-O {[%clk 0:02:26]} 7. cxd5 {[%clk 0:02:47]}  exd5 {[%clk 0:02:23]} 8. Nc3 {[%clk 0:02:46]}  Nc6 {[%clk 0:02:19]} 9. Bf4 {[%clk 0:02:36]}  a6 {[%clk 0:02:17]} 10. Rc1 {[%clk 0:02:27]}  Be6 {[%clk 0:02:00]} 11. dxc5 {[%clk 0:01:53]}  Bxc5 {[%clk 0:02:01]} 12. Ne5 {[%clk 0:01:50]}  Bd6 {[%clk 0:01:38]} 13. Nxc6 {[%clk 0:01:44]}  bxc6 {[%clk 0:01:39]} 14. Bxd6 {[%clk 0:01:44]}  Qxd6 {[%clk 0:01:38]} 15. Qa4 {[%clk 0:01:44]}  Rfd8 {[%clk 0:01:18]} 16. Rfd1 {[%clk 0:01:39]}  Qb8 {[%clk 0:00:43]} 17. b3 {[%clk 0:01:23]}  Qb6 {[%clk 0:00:38]} 18. Qa3 {[%clk 0:01:16]}  Ng4 {[%clk 0:00:32]} 19. e3 {[%clk 0:01:14]}  d4 {[%clk 0:00:30]} 20. Na4 {[%clk 0:01:12]}  Qa7 {[%clk 0:00:29]} 21. h3 {[%clk 0:01:09]}  dxe3 {[%clk 0:00:16]} 22. hxg4 {[%clk 0:01:06]}  exf2+ {[%clk 0:00:16]} 23. Kh2 {[%clk 0:00:58]}  Qe3 {[%clk 0:00:12]} 24. Qc5 {[%clk 0:00:46]}  Qe2 {[%clk 0:00:06]} 25. Bf1 {[%clk 0:00:16]}  Qxg4 {[%clk 0:00:06]} 26. Rxd8+ {[%clk 0:00:14]}  Rxd8 {[%clk 0:00:06]} 27. Qxf2 {[%clk 0:00:15]}  Qg5 {[%clk 0:00:06]} 28. Re1 {[%clk 0:00:12]}  Rd2 {[%clk 0:00:05]} 29. Re2 {[%clk 0:00:10]}  Qh5+ {[%clk 0:00:06]} 30. Kg1 {[%clk 0:00:09]}  Rd1 {[%clk 0:00:05]} 31. Nc3 {[%clk 0:00:07]}  Rc1 {[%clk 0:00:03]} 32. Ne4 {[%clk 0:00:05]}  h6 {[%clk 0:00:03]} 33. Nd2 {[%clk 0:00:06]}  Bd5 {[%clk 0:00:03]} 34. Ne4 {[%clk 0:00:05]}  Qe5 {[%clk 0:00:01]} 35. Qf4 {[%clk 0:00:05]}  Qd4+ {[%clk 0:00:01]} 36. Qe3 {[%clk 0:00:05]}  Qxe3+ {[%clk 0:00:01]} 37. Rxe3 {[%clk 0:00:06]}  f5 {[%clk 0:00:01]} 38. Nd2 {[%clk 0:00:06]}  g5 {[%clk 0:00:01]} 39. Kf2 {[%clk 0:00:06]}  f4 {[%clk 0:00:02]} 40. gxf4 {[%clk 0:00:07]}  gxf4 {[%clk 0:00:02]} 41. Rd3 {[%clk 0:00:08]}  Rc2 {[%clk 0:00:03]} 42. Be2 {[%clk 0:00:08]}  Rxa2 {[%clk 0:00:04]} 43. Rd4 {[%clk 0:00:08]}  Rb2 {[%clk 0:00:04]} 44. Nc4 {[%clk 0:00:08]}  Bxc4 {[%clk 0:00:04]} 45. bxc4 {[%clk 0:00:06]}  a5 {[%clk 0:00:04]} 46. Rxf4 {[%clk 0:00:07]}  a4 {[%clk 0:00:05]} 47. Rf6 {[%clk 0:00:08]}  a3 {[%clk 0:00:06]} 48. Rxc6 {[%clk 0:00:08]}  a2 {[%clk 0:00:06]} 49. Ra6 {[%clk 0:00:09]}  Kg7 {[%clk 0:00:06]} 50. c5 {[%clk 0:00:09]}  Rc2 {[%clk 0:00:07]} 51. c6 {[%clk 0:00:09]}  Kf6 {[%clk 0:00:07]} 52. Ke3 {[%clk 0:00:09]}  Kg5 {[%clk 0:00:08]} 53. Bf3 {[%clk 0:00:10]}  h5 {[%clk 0:00:08]} 54. Ra5+ {[%clk 0:00:10]}  Kh4 {[%clk 0:00:08]} 55. Kd3 {[%clk 0:00:10]}  Rc1 {[%clk 0:00:07]} 56. Kd2 {[%clk 0:00:11]}  Rc4 {[%clk 0:00:07]} 57. Kd3 {[%clk 0:00:08]}  Rc1 {[%clk 0:00:07]} 58. Be4 {[%clk 0:00:09]}  Kg3 {[%clk 0:00:07]} 59. Rxa2 {[%clk 0:00:09]}  h4 {[%clk 0:00:07]} 60. Rc2 {[%clk 0:00:09]}  h3 {[%clk 0:00:07]} 61. Rxc1 {[%clk 0:00:09]} 1-0


[Site "https://www.chess.com"]

[Event "Titled Tuesday Blitz July 6 2021"]
[White "Zhigalko, Sergei"]
[Black "Sardana, Rishi"]
[WhiteFideId "13502956"]
[BlackFideId "25004301"]
[WhiteElo "2662"]
[BlackElo "2340"]
[Result "1/2-1/2"]
[Round "07"]
[TimeControl "180+1"]
[Date "2021.07.06"]
[WhiteClock "0:00:05"]
[BlackClock "0:00:10"]

1. e4 {[%clk 0:03:00]}  c5 {[%clk 0:02:52]} 2. Nf3 {[%clk 0:03:00]}  d6 {[%clk 0:02:52]} 3. d4 {[%clk 0:03:00]}  cxd4 {[%clk 0:02:53]} 4. Qxd4 {[%clk 0:03:01]}  a6 {[%clk 0:02:45]} 5. Bc4 {[%clk 0:03:01]}  Nc6 {[%clk 0:02:30]} 6. Qd3 {[%clk 0:03:01]}  Nf6 {[%clk 0:02:28]} 7. Nc3 {[%clk 0:03:02]}  g6 {[%clk 0:02:18]} 8. Bg5 {[%clk 0:03:01]}  Bg7 {[%clk 0:02:17]} 9. Bb3 {[%clk 0:03:01]}  O-O {[%clk 0:02:17]} 10. O-O-O {[%clk 0:03:02]}  Be6 {[%clk 0:01:56]} 11. Kb1 {[%clk 0:02:53]}  b5 {[%clk 0:01:53]} 12. Bxe6 {[%clk 0:02:14]}  fxe6 {[%clk 0:01:52]} 13. e5 {[%clk 0:02:15]}  Nxe5 {[%clk 0:01:20]} 14. Nxe5 {[%clk 0:02:09]}  dxe5 {[%clk 0:01:21]} 15. Qe2 {[%clk 0:01:47]}  Qc7 {[%clk 0:01:15]} 16. f3 {[%clk 0:01:39]}  Rac8 {[%clk 0:01:11]} 17. Rhe1 {[%clk 0:01:36]}  b4 {[%clk 0:00:59]} 18. Ne4 {[%clk 0:01:36]}  Nd5 {[%clk 0:01:00]} 19. Rd2 {[%clk 0:01:10]}  a5 {[%clk 0:00:59]} 20. Qa6 {[%clk 0:01:02]}  Qc6 {[%clk 0:00:45]} 21. Qxc6 {[%clk 0:00:41]}  Rxc6 {[%clk 0:00:46]} 22. Nf2 {[%clk 0:00:42]}  a4 {[%clk 0:00:40]} 23. Nd3 {[%clk 0:00:42]}  a3 {[%clk 0:00:34]} 24. Nxe5 {[%clk 0:00:40]}  Rc7 {[%clk 0:00:30]} 25. Bh4 {[%clk 0:00:30]}  Rf5 {[%clk 0:00:20]} 26. Bg3 {[%clk 0:00:30]}  g5 {[%clk 0:00:19]} 27. Ng4 {[%clk 0:00:03]}  Rc6 {[%clk 0:00:11]} 28. Be5 {[%clk 0:00:04]}  h5 {[%clk 0:00:11]} 29. Bxg7 {[%clk 0:00:04]}  Kxg7 {[%clk 0:00:10]} 30. Ne5 {[%clk 0:00:04]}  Rc7 {[%clk 0:00:09]} 31. Nd3 {[%clk 0:00:05]}  h4 {[%clk 0:00:07]} 32. Rxe6 {[%clk 0:00:03]}  h3 {[%clk 0:00:07]} 33. gxh3 {[%clk 0:00:04]}  Rxf3 {[%clk 0:00:07]} 34. Re1 {[%clk 0:00:05]}  axb2 {[%clk 0:00:02]} 35. Kxb2 {[%clk 0:00:06]}  Nc3 {[%clk 0:00:03]} 36. Nxb4 {[%clk 0:00:03]}  Na4+ {[%clk 0:00:03]} 37. Ka1 {[%clk 0:00:02]}  Rxh3 {[%clk 0:00:04]} 38. Nd5 {[%clk 0:00:02]}  Rd7 {[%clk 0:00:03]} 39. Rxe7+ {[%clk 0:00:03]}  Rxe7 {[%clk 0:00:04]} 40. Nxe7 {[%clk 0:00:03]}  Kf6 {[%clk 0:00:03]} 41. Nd5+ {[%clk 0:00:03]}  Ke5 {[%clk 0:00:04]} 42. a3 {[%clk 0:00:03]}  Rxa3+ {[%clk 0:00:04]} 43. Kb1 {[%clk 0:00:03]}  Rf3 {[%clk 0:00:04]} 44. Ka2 {[%clk 0:00:03]}  Nc5 {[%clk 0:00:04]} 45. Nb4 {[%clk 0:00:03]}  Ne4 {[%clk 0:00:04]} 46. Nd3+ {[%clk 0:00:03]}  Kf5 {[%clk 0:00:04]} 47. Rg2 {[%clk 0:00:03]}  Nc3+ {[%clk 0:00:04]} 48. Kb3 {[%clk 0:00:04]}  Ne4 {[%clk 0:00:05]} 49. Kc4 {[%clk 0:00:04]}  g4 {[%clk 0:00:05]} 50. Kd4 {[%clk 0:00:04]}  Rf1 {[%clk 0:00:05]} 51. Re2 {[%clk 0:00:03]}  Ng5 {[%clk 0:00:05]} 52. Re5+ {[%clk 0:00:03]}  Kf6 {[%clk 0:00:05]} 53. Ra5 {[%clk 0:00:03]}  Nf3+ {[%clk 0:00:06]} 54. Ke3 {[%clk 0:00:02]}  Nxh2 {[%clk 0:00:07]} 55. Nf4 {[%clk 0:00:03]}  Rf3+ {[%clk 0:00:07]} 56. Ke4 {[%clk 0:00:03]}  Nf1 {[%clk 0:00:08]} 57. Nh5+ {[%clk 0:00:03]}  Kg6 {[%clk 0:00:08]} 58. Nf4+ {[%clk 0:00:04]}  Kf6 {[%clk 0:00:09]} 59. Nh5+ {[%clk 0:00:04]}  Kg6 {[%clk 0:00:09]} 60. Nf4+ {[%clk 0:00:05]}  Kf6 {[%clk 0:00:10]} 1/2-1/2


[Site "https://www.chess.com"]

[Event "Titled Tuesday Blitz July 6 2021"]
[White "Abdusattorov, Nodirbek"]
[Black "Khusnutdinov, Rustam"]
[WhiteFideId "14204118"]
[BlackFideId "13701703"]
[WhiteElo "2662"]
[BlackElo "2571"]
[Result "0-1"]
[Round "08"]
[TimeControl "180+1"]
[Date "2021.07.06"]
[WhiteClock "0:00:29"]
[BlackClock "0:01:19"]

1. d4 {[%clk 0:03:00]}  d5 {[%clk 0:02:56]} 2. c4 {[%clk 0:03:01]}  e6 {[%clk 0:02:56]} 3. Nc3 {[%clk 0:03:00]}  a6 {[%clk 0:02:56]} 4. cxd5 {[%clk 0:02:59]}  exd5 {[%clk 0:02:57]} 5. Qb3 {[%clk 0:03:00]}  Nf6 {[%clk 0:02:57]} 6. Bg5 {[%clk 0:02:57]}  c5 {[%clk 0:02:57]} 7. Bxf6 {[%clk 0:02:56]}  gxf6 {[%clk 0:02:58]} 8. Qxd5 {[%clk 0:02:53]}  Qb6 {[%clk 0:02:52]} 9. O-O-O {[%clk 0:02:47]}  Be6 {[%clk 0:02:42]} 10. Qf3 {[%clk 0:02:01]}  cxd4 {[%clk 0:02:35]} 11. Ne4 {[%clk 0:02:01]}  Nd7 {[%clk 0:02:29]} 12. Kb1 {[%clk 0:01:58]}  Qa5 {[%clk 0:02:20]} 13. a3 {[%clk 0:01:50]}  Qd5 {[%clk 0:02:12]} 14. Nxf6+ {[%clk 0:01:08]}  Nxf6 {[%clk 0:02:11]} 15. Qxd5 {[%clk 0:01:09]}  Nxd5 {[%clk 0:02:12]} 16. Nf3 {[%clk 0:01:10]}  d3 {[%clk 0:01:58]} 17. e3 {[%clk 0:01:02]}  Bg7 {[%clk 0:01:54]} 18. Bxd3 {[%clk 0:01:02]}  Ke7 {[%clk 0:01:54]} 19. Ng5 {[%clk 0:00:55]}  Rad8 {[%clk 0:01:44]} 20. Be4 {[%clk 0:00:43]}  h6 {[%clk 0:01:29]} 21. Nxe6 {[%clk 0:00:42]}  fxe6 {[%clk 0:01:27]} 22. h4 {[%clk 0:00:30]}  Rd6 {[%clk 0:01:27]} 23. Rd3 {[%clk 0:00:29]}  Rb6 {[%clk 0:01:19]} 0-1


[Site "https://www.chess.com"]

[Event "Titled Tuesday Blitz July 6 2021"]
[White "Alavi, Sayed Javad"]
[Black "Golubev, Mikhail"]
[WhiteFideId "12500607"]
[BlackFideId "14100983"]
[WhiteElo "2495"]
[BlackElo "2374"]
[Result "1-0"]
[Round "08"]
[TimeControl "180+1"]
[Date "2021.07.06"]
[WhiteClock "0:00:33"]
[BlackClock "0:00:04"]

1. d4 {[%clk 0:02:58]}  d6 {[%clk 0:02:59]} 2. e4 {[%clk 0:02:58]}  Nf6 {[%clk 0:02:58]} 3. f3 {[%clk 0:02:57]}  g6 {[%clk 0:02:57]} 4. c4 {[%clk 0:02:53]}  Bg7 {[%clk 0:02:57]} 5. Nc3 {[%clk 0:02:54]}  O-O {[%clk 0:02:55]} 6. Be3 {[%clk 0:02:54]}  a6 {[%clk 0:02:52]} 7. Qd2 {[%clk 0:02:53]}  Nbd7 {[%clk 0:02:51]} 8. h4 {[%clk 0:02:51]}  c5 {[%clk 0:02:32]} 9. d5 {[%clk 0:02:20]}  h5 {[%clk 0:02:31]} 10. a4 {[%clk 0:02:19]}  Ne5 {[%clk 0:02:28]} 11. Nh3 {[%clk 0:02:18]}  Bxh3 {[%clk 0:02:15]} 12. Rxh3 {[%clk 0:02:19]}  e6 {[%clk 0:02:15]} 13. Be2 {[%clk 0:02:12]}  exd5 {[%clk 0:02:14]} 14. exd5 {[%clk 0:02:04]}  Re8 {[%clk 0:02:10]} 15. Kf2 {[%clk 0:02:04]}  Qd7 {[%clk 0:02:07]} 16. Rhh1 {[%clk 0:01:59]}  Qf5 {[%clk 0:02:03]} 17. Kg3 {[%clk 0:01:50]}  Nxc4 {[%clk 0:00:48]} 18. Bxc4 {[%clk 0:01:49]}  Ng4 {[%clk 0:00:48]} 19. Bf4 {[%clk 0:01:32]}  Bd4 {[%clk 0:00:47]} 20. Ne4 {[%clk 0:01:18]}  Rxe4 {[%clk 0:00:17]} 21. fxe4 {[%clk 0:01:19]}  Qxe4 {[%clk 0:00:17]} 22. Rhf1 {[%clk 0:01:16]}  Ne3 {[%clk 0:00:12]} 23. Bxe3 {[%clk 0:01:00]}  Bxe3 {[%clk 0:00:12]} 24. Qe2 {[%clk 0:01:01]}  Re8 {[%clk 0:00:07]} 25. Qf3 {[%clk 0:00:57]}  Qe5+ {[%clk 0:00:06]} 26. Kh3 {[%clk 0:00:58]}  f5 {[%clk 0:00:07]} 27. Rae1 {[%clk 0:00:54]}  Qd4 {[%clk 0:00:07]} 28. g3 {[%clk 0:00:46]}  Re4 {[%clk 0:00:07]} 29. b3 {[%clk 0:00:44]}  Kg7 {[%clk 0:00:05]} 30. Re2 {[%clk 0:00:41]}  Qe5 {[%clk 0:00:05]} 31. Rfe1 {[%clk 0:00:35]}  f4 {[%clk 0:00:05]} 32. Bd3 {[%clk 0:00:35]}  Qf5+ {[%clk 0:00:04]} 33. Kg2 {[%clk 0:00:33]} 1-0


[Site "https://www.chess.com"]

[Event "Titled Tuesday Blitz July 6 2021"]
[White "Alavkin, Arseny"]
[Black "Shahade, Gregory"]
[WhiteFideId "4120612"]
[BlackFideId "2009064"]
[WhiteElo "2401"]
[BlackElo "2729"]
[Result "1-0"]
[Round "08"]
[TimeControl "180+1"]
[Date "2021.07.06"]
[WhiteClock "0:00:36"]
[BlackClock "0:00:20"]

1. e4 {[%clk 0:03:00]}  e5 {[%clk 0:03:00]} 2. Bc4 {[%clk 0:02:59]}  Nf6 {[%clk 0:03:00]} 3. d3 {[%clk 0:02:59]}  Nc6 {[%clk 0:02:59]} 4. Nc3 {[%clk 0:02:59]}  Bc5 {[%clk 0:03:00]} 5. f4 {[%clk 0:02:59]}  d6 {[%clk 0:03:00]} 6. Nf3 {[%clk 0:02:59]}  exf4 {[%clk 0:03:00]} 7. Bxf4 {[%clk 0:02:57]}  O-O {[%clk 0:03:00]} 8. Qd2 {[%clk 0:02:56]}  Be6 {[%clk 0:03:00]} 9. Bb3 {[%clk 0:02:55]}  a5 {[%clk 0:02:59]} 10. Be3 {[%clk 0:02:51]}  Bxe3 {[%clk 0:02:52]} 11. Qxe3 {[%clk 0:02:52]}  d5 {[%clk 0:02:51]} 12. exd5 {[%clk 0:02:43]}  Nxd5 {[%clk 0:02:51]} 13. Nxd5 {[%clk 0:02:39]}  Bxd5 {[%clk 0:02:51]} 14. O-O {[%clk 0:02:40]}  a4 {[%clk 0:02:45]} 15. Bxd5 {[%clk 0:02:28]}  Qxd5 {[%clk 0:02:46]} 16. Rfe1 {[%clk 0:02:21]}  h6 {[%clk 0:02:44]} 17. d4 {[%clk 0:02:11]}  Rad8 {[%clk 0:02:40]} 18. c3 {[%clk 0:02:10]}  Rd6 {[%clk 0:02:39]} 19. Qd3 {[%clk 0:02:04]}  b5 {[%clk 0:02:23]} 20. Re4 {[%clk 0:01:59]}  Na5 {[%clk 0:02:14]} 21. Re5 {[%clk 0:01:58]}  Qc4 {[%clk 0:02:02]} 22. Qxc4 {[%clk 0:01:58]}  Nxc4 {[%clk 0:02:02]} 23. Rxb5 {[%clk 0:01:59]}  Re8 {[%clk 0:01:55]} 24. Re1 {[%clk 0:01:56]}  Rxe1+ {[%clk 0:01:54]} 25. Nxe1 {[%clk 0:01:57]}  Re6 {[%clk 0:01:54]} 26. Kf2 {[%clk 0:01:56]}  Rf6+ {[%clk 0:01:48]} 27. Nf3 {[%clk 0:01:52]}  g5 {[%clk 0:01:43]} 28. h3 {[%clk 0:01:52]}  a3 {[%clk 0:01:32]} 29. bxa3 {[%clk 0:01:31]}  Nxa3 {[%clk 0:01:31]} 30. Rc5 {[%clk 0:01:29]}  Rb6 {[%clk 0:01:20]} 31. Rxc7 {[%clk 0:01:26]}  Rb2+ {[%clk 0:01:20]} 32. Kg3 {[%clk 0:01:26]}  f5 {[%clk 0:01:17]} 33. d5 {[%clk 0:01:17]}  g4 {[%clk 0:00:52]} 34. hxg4 {[%clk 0:01:14]}  fxg4 {[%clk 0:00:53]} 35. Ne5 {[%clk 0:01:10]}  Rd2 {[%clk 0:00:53]} 36. Nxg4 {[%clk 0:01:04]}  Rd3+ {[%clk 0:00:44]} 37. Kf4 {[%clk 0:01:01]}  Kf8 {[%clk 0:00:44]} 38. Ke5 {[%clk 0:00:48]}  h5 {[%clk 0:00:40]} 39. Nf6 {[%clk 0:00:44]}  Nb5 {[%clk 0:00:38]} 40. Rc8+ {[%clk 0:00:37]}  Kf7 {[%clk 0:00:36]} 41. Ne4 {[%clk 0:00:36]}  h4 {[%clk 0:00:30]} 42. c4 {[%clk 0:00:35]}  Na7 {[%clk 0:00:22]} 43. Rc7+ {[%clk 0:00:34]}  Kg8 {[%clk 0:00:21]} 44. Rxa7 {[%clk 0:00:35]}  h3 {[%clk 0:00:21]} 45. gxh3 {[%clk 0:00:35]}  Rxh3 {[%clk 0:00:22]} 46. c5 {[%clk 0:00:36]}  Rh5+ {[%clk 0:00:20]} 47. Kd4 {[%clk 0:00:36]}  Rh1 {[%clk 0:00:20]} 48. c6 {[%clk 0:00:36]}  Rc1 {[%clk 0:00:19]} 49. c7 {[%clk 0:00:36]}  Kh8 {[%clk 0:00:20]} 50. Ra8+ {[%clk 0:00:36]} 1-0


[Site "https://www.chess.com"]

[Event "Titled Tuesday Blitz July 6 2021"]
[White "Andreikin, Dmitry"]
[Black "Grischuk, Alexander"]
[WhiteFideId "4158814"]
[BlackFideId "4126025"]
[WhiteElo "2782"]
[BlackElo "2765"]
[Result "1/2-1/2"]
[Round "08"]
[TimeControl "180+1"]
[Date "2021.07.06"]
[WhiteClock "0:00:14"]
[BlackClock "0:00:05"]

1. e4 {[%clk 0:03:00]}  e5 {[%clk 0:03:00]} 2. Nf3 {[%clk 0:03:00]}  Nc6 {[%clk 0:03:00]} 3. Bb5 {[%clk 0:03:01]}  Nf6 {[%clk 0:03:00]} 4. O-O {[%clk 0:03:01]}  Nxe4 {[%clk 0:03:00]} 5. d4 {[%clk 0:03:01]}  Nd6 {[%clk 0:03:00]} 6. Bxc6 {[%clk 0:03:01]}  dxc6 {[%clk 0:03:01]} 7. dxe5 {[%clk 0:03:01]}  Nf5 {[%clk 0:03:02]} 8. Qxd8+ {[%clk 0:03:02]}  Kxd8 {[%clk 0:03:02]} 9. Rd1+ {[%clk 0:03:02]}  Ke8 {[%clk 0:03:02]} 10. Nc3 {[%clk 0:03:02]}  Ne7 {[%clk 0:02:59]} 11. Nd4 {[%clk 0:02:58]}  Ng6 {[%clk 0:02:54]} 12. h3 {[%clk 0:02:58]}  Be7 {[%clk 0:02:41]} 13. f4 {[%clk 0:02:51]}  Nh4 {[%clk 0:02:35]} 14. g4 {[%clk 0:02:27]}  h5 {[%clk 0:02:34]} 15. f5 {[%clk 0:02:27]}  hxg4 {[%clk 0:02:24]} 16. hxg4 {[%clk 0:02:28]}  g6 {[%clk 0:02:21]} 17. e6 {[%clk 0:02:15]}  gxf5 {[%clk 0:02:18]} 18. gxf5 {[%clk 0:02:14]}  Rh5 {[%clk 0:01:54]} 19. Bf4 {[%clk 0:01:37]}  Nxf5 {[%clk 0:01:49]} 20. exf7+ {[%clk 0:01:37]}  Kxf7 {[%clk 0:01:49]} 21. Nf3 {[%clk 0:01:37]}  Be6 {[%clk 0:01:39]} 22. Ne5+ {[%clk 0:01:37]}  Kg7 {[%clk 0:01:28]} 23. Kf2 {[%clk 0:01:24]}  Bc5+ {[%clk 0:01:25]} 24. Ke2 {[%clk 0:01:18]}  Re8 {[%clk 0:01:11]} 25. Ne4 {[%clk 0:01:14]}  Bd4 {[%clk 0:00:38]} 26. Rg1+ {[%clk 0:01:14]}  Kf8 {[%clk 0:00:30]} 27. Nf6 {[%clk 0:00:45]}  Bc4+ {[%clk 0:00:20]} 28. Kd2 {[%clk 0:00:45]}  Bxg1 {[%clk 0:00:03]} 29. Rxg1 {[%clk 0:00:35]}  Rxe5 {[%clk 0:00:03]} 30. Bxe5 {[%clk 0:00:32]}  Rh3 {[%clk 0:00:03]} 31. b3 {[%clk 0:00:25]}  Be6 {[%clk 0:00:03]} 32. Bxc7 {[%clk 0:00:24]}  Nd4 {[%clk 0:00:03]} 33. Rg3 {[%clk 0:00:12]}  Rxg3 {[%clk 0:00:03]} 34. Bxg3 {[%clk 0:00:13]}  Bf5 {[%clk 0:00:02]} 35. Bf2 {[%clk 0:00:10]}  Nxc2 {[%clk 0:00:01]} 36. Bxa7 {[%clk 0:00:10]}  Kf7 {[%clk 0:00:02]} 37. Nd7 {[%clk 0:00:09]}  Bxd7 {[%clk 0:00:01]} 38. Kxc2 {[%clk 0:00:09]}  Ke6 {[%clk 0:00:02]} 39. Kc3 {[%clk 0:00:09]}  Kd5 {[%clk 0:00:03]} 40. b4 {[%clk 0:00:10]}  b5 {[%clk 0:00:03]} 41. a3 {[%clk 0:00:10]}  Be6 {[%clk 0:00:03]} 42. Bc5 {[%clk 0:00:11]}  Bd7 {[%clk 0:00:04]} 43. Bd4 {[%clk 0:00:12]}  Be6 {[%clk 0:00:04]} 44. Bc5 {[%clk 0:00:13]}  Bd7 {[%clk 0:00:05]} 45. Bd4 {[%clk 0:00:14]}  Be6 {[%clk 0:00:05]} 46. Bc5 {[%clk 0:00:14]} 1/2-1/2


[Site "https://www.chess.com"]

[Event "Titled Tuesday Blitz July 6 2021"]
[White "Baskin, Robert"]
[Black "Garcia Blanco, Omar"]
[WhiteFideId "24662402"]
[BlackFideId "2287153"]
[WhiteElo "2462"]
[BlackElo "2273"]
[Result "1-0"]
[Round "08"]
[TimeControl "180+1"]
[Date "2021.07.06"]
[WhiteClock "0:00:27"]
[BlackClock "0:00:02"]

1. d4 {[%clk 0:03:00]}  Nf6 {[%clk 0:02:50]} 2. c4 {[%clk 0:02:59]}  g6 {[%clk 0:02:31]} 3. Nc3 {[%clk 0:02:55]}  Bg7 {[%clk 0:02:31]} 4. e4 {[%clk 0:02:55]}  d6 {[%clk 0:02:31]} 5. Be2 {[%clk 0:02:55]}  O-O {[%clk 0:02:30]} 6. Bg5 {[%clk 0:02:55]}  c5 {[%clk 0:02:22]} 7. d5 {[%clk 0:02:50]}  b5 {[%clk 0:02:10]} 8. cxb5 {[%clk 0:02:45]}  a6 {[%clk 0:02:10]} 9. bxa6 {[%clk 0:02:37]}  Nxa6 {[%clk 0:02:00]} 10. Nf3 {[%clk 0:02:35]}  Qa5 {[%clk 0:02:00]} 11. O-O {[%clk 0:02:34]}  Bg4 {[%clk 0:01:59]} 12. Nd2 {[%clk 0:02:31]}  Bxe2 {[%clk 0:01:56]} 13. Qxe2 {[%clk 0:02:31]}  Nc7 {[%clk 0:01:39]} 14. Nc4 {[%clk 0:02:26]}  Qb4 {[%clk 0:01:29]} 15. a3 {[%clk 0:02:22]}  Qb3 {[%clk 0:01:22]} 16. a4 {[%clk 0:02:21]}  Rfb8 {[%clk 0:01:18]} 17. Ra3 {[%clk 0:02:21]}  Qb4 {[%clk 0:01:16]} 18. Bd2 {[%clk 0:02:15]}  Qb7 {[%clk 0:01:03]} 19. h3 {[%clk 0:02:04]}  Nd7 {[%clk 0:01:02]} 20. Rb1 {[%clk 0:01:54]}  Ne5 {[%clk 0:01:01]} 21. Ne3 {[%clk 0:01:42]}  Na6 {[%clk 0:00:58]} 22. Nb5 {[%clk 0:01:41]}  Nc7 {[%clk 0:00:57]} 23. Nxc7 {[%clk 0:01:36]}  Qxc7 {[%clk 0:00:56]} 24. b3 {[%clk 0:01:36]}  Qa7 {[%clk 0:00:41]} 25. Nc4 {[%clk 0:01:35]}  Nxc4 {[%clk 0:00:39]} 26. Qxc4 {[%clk 0:01:33]}  Qa6 {[%clk 0:00:37]} 27. Qxa6 {[%clk 0:01:30]}  Rxa6 {[%clk 0:00:35]} 28. b4 {[%clk 0:01:30]}  cxb4 {[%clk 0:00:35]} 29. Rxb4 {[%clk 0:01:29]}  Rxb4 {[%clk 0:00:18]} 30. Bxb4 {[%clk 0:01:28]}  Bd4 {[%clk 0:00:18]} 31. a5 {[%clk 0:01:27]}  f5 {[%clk 0:00:17]} 32. exf5 {[%clk 0:01:25]}  gxf5 {[%clk 0:00:18]} 33. Kf1 {[%clk 0:01:21]}  Kf7 {[%clk 0:00:16]} 34. Ke2 {[%clk 0:01:17]}  Kf6 {[%clk 0:00:13]} 35. f4 {[%clk 0:01:14]}  e6 {[%clk 0:00:05]} 36. Kd3 {[%clk 0:01:11]}  e5 {[%clk 0:00:04]} 37. Kc4 {[%clk 0:01:10]}  Bf2 {[%clk 0:00:02]} 38. Kb5 {[%clk 0:01:07]}  Ra8 {[%clk 0:00:02]} 39. Bxd6 {[%clk 0:01:07]}  e4 {[%clk 0:00:02]} 40. a6 {[%clk 0:00:36]}  e3 {[%clk 0:00:02]} 41. Bc5 {[%clk 0:00:35]}  Kf7 {[%clk 0:00:01]} 42. Bxe3 {[%clk 0:00:33]}  Rb8+ {[%clk 0:00:01]} 43. Kc6 {[%clk 0:00:32]}  Be1 {[%clk 0:00:02]} 44. a7 {[%clk 0:00:31]}  Rc8+ {[%clk 0:00:03]} 45. Kb7 {[%clk 0:00:31]}  Rd8 {[%clk 0:00:01]} 46. a8=Q {[%clk 0:00:30]}  Rd7+ {[%clk 0:00:01]} 47. Kc6 {[%clk 0:00:30]}  Re7 {[%clk 0:00:02]} 48. Bc5 {[%clk 0:00:28]}  Re8 {[%clk 0:00:02]} 49. Ra7+ {[%clk 0:00:27]} 1-0


[Site "https://www.chess.com"]